[Event "Late-Titled-Tuesday-Blitz-September-12-2023"]
[Site "Chess.com"]
[Date "2023.09.12"]
[Round "3"]
[White "h4parah5"]
[Black "crazy_but_lazy"]
[Result "1-0"]
[WhiteElo "2943"]
[BlackElo "2642"]
[TimeControl "180+1"]
[EndTime "14:26:55 PDT"]
[Termination "h4parah5 won by resignation"]

1. Nf3 {[%clk 0:03:00.9]} 1... d5 {[%clk 0:02:54.5]} 2. b4 {[%clk 0:03:00.5]}
2... Nf6 {[%clk 0:02:54.2]} 3. Bb2 {[%clk 0:02:58.9]} 3... Bf5 {[%clk
0:02:52.7]} 4. e3 {[%clk 0:02:57.6]} 4... e6 {[%clk 0:02:53]} 5. a3 {[%clk
0:02:57.6]} 5... h6 {[%clk 0:02:52.9]} 6. c4 {[%clk 0:02:54.4]} 6... c6 {[%clk
0:02:52.4]} 7. Nc3 {[%clk 0:02:50.9]} 7... Nbd7 {[%clk 0:02:50.5]} 8. cxd5
{[%clk 0:02:40.6]} 8... cxd5 {[%clk 0:02:43.1]} 9. Rc1 {[%clk 0:02:39.2]} 9...
Be7 {[%clk 0:02:41.5]} 10. Be2 {[%clk 0:02:36.5]} 10... O-O {[%clk 0:02:41.4]}
11. O-O {[%clk 0:02:36.2]} 11... a5 {[%clk 0:02:40.8]} 12. Qb3 {[%clk
0:02:30.1]} 12... axb4 {[%clk 0:02:34.4]} 13. axb4 {[%clk 0:02:31]} 13... Qb6
{[%clk 0:02:34]} 14. Nb5 {[%clk 0:02:31.3]} 14... Ne4 {[%clk 0:02:14.7]} 15. Bd4
{[%clk 0:02:26]} 15... Qd8 {[%clk 0:02:15]} 16. Rc7 {[%clk 0:02:21.2]} 16... b6
{[%clk 0:01:59.9]} 17. Rfc1 {[%clk 0:02:15.4]} 17... Nd6 {[%clk 0:01:39.4]} 18.
Ne5 {[%clk 0:02:04.8]} 18... Nxe5 {[%clk 0:01:15.3]} 19. Bxe5 {[%clk 0:02:03.8]}
19... Nxb5 {[%clk 0:00:58]} 20. Bxb5 {[%clk 0:02:03]} 20... Bd6 {[%clk
0:00:58.6]} 21. Rd7 {[%clk 0:01:42.8]} 21... Bxe5 {[%clk 0:00:59.1]} 22. Rxd8
{[%clk 0:01:42.6]} 22... Rfxd8 {[%clk 0:01:00]} 23. h3 {[%clk 0:01:34.1]} 23...
d4 {[%clk 0:00:55.8]} 24. Bc6 {[%clk 0:01:08.2]} 24... Rac8 {[%clk 0:00:55.7]}
25. b5 {[%clk 0:01:07.9]} 25... dxe3 {[%clk 0:00:50.6]} 26. dxe3 {[%clk
0:01:08.8]} 26... Bd6 {[%clk 0:00:45.4]} 27. Qb2 {[%clk 0:01:04.6]} 27... Bc5
{[%clk 0:00:42.8]} 28. Rxc5 {[%clk 0:00:59.8]} 28... bxc5 {[%clk 0:00:42.9]} 29.
Qc3 {[%clk 0:01:00.5]} 29... Rd1+ {[%clk 0:00:30]} 30. Kh2 {[%clk 0:01:00.1]}
30... Rb1 {[%clk 0:00:30.7]} 31. e4 {[%clk 0:00:59]} 31... Bg6 {[%clk
0:00:27.1]} 32. f3 {[%clk 0:00:58.7]} 32... Rd8 {[%clk 0:00:14.3]} 33. Qxc5
{[%clk 0:00:58.7]} 33... Rb2 {[%clk 0:00:14.3]} 34. Kg3 {[%clk 0:00:46.9]} 34...
Rdd2 {[%clk 0:00:14.5]} 35. Kf4 {[%clk 0:00:42.6]} 35... f6 {[%clk 0:00:11.8]}
36. e5 {[%clk 0:00:23.5]} 36... Bf5 {[%clk 0:00:08.8]} 37. exf6 {[%clk 0:00:21]}
37... g5+ {[%clk 0:00:08.5]} 38. Ke5 {[%clk 0:00:18.9]} 38... Re2+ {[%clk
0:00:07.8]} 39. Kd6 {[%clk 0:00:19]} 39... Rbd2+ {[%clk 0:00:08.6]} 40. Ke7
{[%clk 0:00:19.1]} 1-0

[Event "Late-Titled-Tuesday-Blitz-September-12-2023"]
[Site "Chess.com"]
[Date "2023.09.12"]
[Round "3"]
[White "chessprincesa1"]
[Black "HajiyevKanan"]
[Result "1-0"]
[WhiteElo "2274"]
[BlackElo "2504"]
[TimeControl "180+1"]
[EndTime "14:26:55 PDT"]
[Termination "chessprincesa1 won by checkmate"]

1. d4 {[%clk 0:02:57.5]} 1... Nf6 {[%clk 0:02:59.6]} 2. c4 {[%clk 0:02:57.9]}
2... e6 {[%clk 0:02:59]} 3. g3 {[%clk 0:02:56.8]} 3... d5 {[%clk 0:02:59.1]} 4.
Bg2 {[%clk 0:02:56.7]} 4... Bb4+ {[%clk 0:02:59.5]} 5. Nd2 {[%clk 0:02:56.2]}
5... O-O {[%clk 0:02:55.5]} 6. Nf3 {[%clk 0:02:56.3]} 6... Ne4 {[%clk
0:02:55.5]} 7. O-O {[%clk 0:02:55.3]} 7... f5 {[%clk 0:02:51.6]} 8. cxd5 {[%clk
0:02:51.8]} 8... exd5 {[%clk 0:02:49.7]} 9. Qb3 {[%clk 0:02:51.1]} 9... Bxd2
{[%clk 0:02:24.8]} 10. Nxd2 {[%clk 0:02:43.8]} 10... Kh8 {[%clk 0:02:19.8]} 11.
Nxe4 {[%clk 0:02:41.1]} 11... fxe4 {[%clk 0:02:20]} 12. Bf4 {[%clk 0:02:39.9]}
12... c6 {[%clk 0:02:11.1]} 13. a4 {[%clk 0:02:36]} 13... Qb6 {[%clk 0:02:06.6]}
14. Qxb6 {[%clk 0:02:26]} 14... axb6 {[%clk 0:02:07.5]} 15. b4 {[%clk
0:02:25.7]} 15... Bg4 {[%clk 0:02:01.6]} 16. f3 {[%clk 0:02:23.1]} 16... exf3
{[%clk 0:02:01.1]} 17. exf3 {[%clk 0:02:24]} 17... Bf5 {[%clk 0:02:00.3]} 18.
Rfe1 {[%clk 0:02:22.3]} 18... Na6 {[%clk 0:01:57.1]} 19. b5 {[%clk 0:02:19]}
19... Nb4 {[%clk 0:01:56.5]} 20. Re7 {[%clk 0:02:11.3]} 20... cxb5 {[%clk
0:01:54.2]} 21. Rxb7 {[%clk 0:02:04]} 21... bxa4 {[%clk 0:01:50.9]} 22. Rxb6
{[%clk 0:01:57.8]} 22... Nc2 {[%clk 0:01:46.6]} 23. Ra2 {[%clk 0:01:56.6]} 23...
Nxd4 {[%clk 0:01:46.3]} 24. Be5 {[%clk 0:01:51]} 24... Ne6 {[%clk 0:01:20.2]}
25. g4 {[%clk 0:01:47.7]} 25... Ng5 {[%clk 0:01:07.7]} 26. gxf5 {[%clk
0:01:46.2]} 26... Rxf5 {[%clk 0:01:08.6]} 27. f4 {[%clk 0:01:45.6]} 27... Ne4
{[%clk 0:01:00.6]} 28. Bxe4 {[%clk 0:01:43.8]} 28... dxe4 {[%clk 0:01:00.8]} 29.
Rb7 {[%clk 0:01:43.8]} 29... h5 {[%clk 0:00:56.5]} 30. Bxg7+ {[%clk 0:01:32.1]}
30... Kh7 {[%clk 0:00:56.5]} 31. Be5+ {[%clk 0:01:31.2]} 31... Kh6 {[%clk
0:00:55.1]} 32. Kf2 {[%clk 0:01:22.6]} 32... a3 {[%clk 0:00:54.5]} 33. Ke3
{[%clk 0:01:22.6]} 33... Ra4 {[%clk 0:00:53.2]} 34. Rc2 {[%clk 0:01:19.2]} 34...
h4 {[%clk 0:00:32.8]} 35. h3 {[%clk 0:01:03.6]} 35... Ra6 {[%clk 0:00:23.7]} 36.
Ba1 {[%clk 0:00:48.5]} 36... a2 {[%clk 0:00:18.8]} 37. Rcc7 {[%clk 0:00:45.8]}
37... Rxf4 {[%clk 0:00:02.2]} 38. Kxf4 {[%clk 0:00:41.5]} 38... Rf6+ {[%clk
0:00:02.8]} 39. Bxf6 {[%clk 0:00:36.7]} 39... e3 {[%clk 0:00:03.3]} 40. Bg5+
{[%clk 0:00:34.8]} 40... Kh5 {[%clk 0:00:01.9]} 41. Rb6 {[%clk 0:00:29.8]} 41...
a1=Q {[%clk 0:00:01.6]} 42. Rh6# {[%clk 0:00:30.1]} 1-0

[Event "Late-Titled-Tuesday-Blitz-September-12-2023"]
[Site "Chess.com"]
[Date "2023.09.12"]
[Round "3"]
[White "RETURNOFTHELAGGER"]
[Black "MusicCityMaster"]
[Result "1-0"]
[WhiteElo "2583"]
[BlackElo "2371"]
[TimeControl "180+1"]
[EndTime "14:26:58 PDT"]
[Termination "RETURNOFTHELAGGER won on time"]

1. d4 {[%clk 0:02:53.5]} 1... Nf6 {[%clk 0:02:59.2]} 2. Nf3 {[%clk 0:02:54.4]}
2... g6 {[%clk 0:02:58.4]} 3. g3 {[%clk 0:02:55.3]} 3... Bg7 {[%clk 0:02:57.6]}
4. Bg2 {[%clk 0:02:56.2]} 4... d6 {[%clk 0:02:58]} 5. O-O {[%clk 0:02:57.1]}
5... O-O {[%clk 0:02:58]} 6. c4 {[%clk 0:02:57]} 6... Nbd7 {[%clk 0:02:58.3]} 7.
Qc2 {[%clk 0:02:50.6]} 7... e5 {[%clk 0:02:57.8]} 8. d5 {[%clk 0:02:50]} 8... a5
{[%clk 0:02:56.2]} 9. e4 {[%clk 0:02:46.8]} 9... Nc5 {[%clk 0:02:54.9]} 10. Re1
{[%clk 0:02:43.1]} 10... a4 {[%clk 0:02:39]} 11. Nc3 {[%clk 0:02:43.5]} 11...
Bd7 {[%clk 0:02:34.3]} 12. h3 {[%clk 0:02:42.1]} 12... Nh5 {[%clk 0:02:27.1]}
13. Be3 {[%clk 0:02:39.5]} 13... b6 {[%clk 0:02:23.1]} 14. b4 {[%clk 0:02:34.5]}
14... axb3 {[%clk 0:02:22.1]} 15. axb3 {[%clk 0:02:35.4]} 15... Rxa1 {[%clk
0:02:18.3]} 16. Rxa1 {[%clk 0:02:36.3]} 16... f5 {[%clk 0:02:14.5]} 17. b4
{[%clk 0:02:19.5]} 17... Nxe4 {[%clk 0:02:00.7]} 18. Nxe4 {[%clk 0:02:20.4]}
18... fxe4 {[%clk 0:02:01.2]} 19. Qxe4 {[%clk 0:02:21.3]} 19... Bf5 {[%clk
0:01:55.2]} 20. Qh4 {[%clk 0:02:21.1]} 20... Bf6 {[%clk 0:01:35.3]} 21. Bg5
{[%clk 0:02:16.5]} 21... Bd3 {[%clk 0:01:17.8]} 22. Rc1 {[%clk 0:02:14]} 22...
e4 {[%clk 0:01:15.5]} 23. Bxf6 {[%clk 0:02:10.9]} 23... Qxf6 {[%clk 0:01:10.6]}
24. Qxf6 {[%clk 0:02:11.2]} 24... Rxf6 {[%clk 0:01:03.6]} 25. Nd4 {[%clk
0:02:12.1]} 25... e3 {[%clk 0:01:00.2]} 26. fxe3 {[%clk 0:02:06]} 26... Nxg3
{[%clk 0:01:00.4]} 27. c5 {[%clk 0:02:06.9]} 27... bxc5 {[%clk 0:00:58.3]} 28.
bxc5 {[%clk 0:02:06.9]} 28... Be4 {[%clk 0:00:46.8]} 29. Bxe4 {[%clk 0:01:13.7]}
29... Nxe4 {[%clk 0:00:46.2]} 30. c6 {[%clk 0:01:14.6]} 30... Ng5 {[%clk
0:00:35]} 31. Ra1 {[%clk 0:01:15]} 31... Nf3+ {[%clk 0:00:34.3]} 32. Nxf3 {[%clk
0:01:09.4]} 32... Rxf3 {[%clk 0:00:35.2]} 33. Ra7 {[%clk 0:01:10.1]} 33... Rf7
{[%clk 0:00:34.3]} 34. Kg2 {[%clk 0:01:03.8]} 34... Kg7 {[%clk 0:00:34.8]} 35.
Kg3 {[%clk 0:01:02.9]} 35... Kf6 {[%clk 0:00:31.4]} 36. Kf4 {[%clk 0:00:59.7]}
36... g5+ {[%clk 0:00:31.1]} 37. Ke4 {[%clk 0:01:00]} 37... Re7+ {[%clk
0:00:31.6]} 38. Kd4 {[%clk 0:00:57.9]} 38... Kf5 {[%clk 0:00:31.6]} 39. Ra8
{[%clk 0:00:54.6]} 39... Re4+ {[%clk 0:00:27.5]} 40. Kd3 {[%clk 0:00:53.6]}
40... Re7 {[%clk 0:00:25.3]} 41. Kd4 {[%clk 0:00:53.2]} 41... Re4+ {[%clk
0:00:17.7]} 42. Kd3 {[%clk 0:00:53.6]} 42... Re7 {[%clk 0:00:14.7]} 43. Rd8
{[%clk 0:00:48.9]} 43... Ke5 {[%clk 0:00:13.4]} 44. e4 {[%clk 0:00:45]} 44... h5
{[%clk 0:00:12.8]} 45. Rf8 {[%clk 0:00:37.2]} 1-0

[Event "Late-Titled-Tuesday-Blitz-September-12-2023"]
[Site "Chess.com"]
[Date "2023.09.12"]
[Round "3"]
[White "KIEV-1"]
[Black "Giantgoogachess"]
[Result "0-1"]
[WhiteElo "2185"]
[BlackElo "2372"]
[TimeControl "180+1"]
[EndTime "14:26:59 PDT"]
[Termination "Giantgoogachess won by resignation"]

1. e4 {[%clk 0:03:00.9]} 1... c5 {[%clk 0:03:00]} 2. Nf3 {[%clk 0:02:57.7]} 2...
Nc6 {[%clk 0:03:00]} 3. d4 {[%clk 0:02:57.9]} 3... cxd4 {[%clk 0:03:00.9]} 4.
Nxd4 {[%clk 0:02:58.3]} 4... Nf6 {[%clk 0:03:01]} 5. Nc3 {[%clk 0:02:58.7]} 5...
e6 {[%clk 0:02:54.5]} 6. a3 {[%clk 0:02:58.5]} 6... Be7 {[%clk 0:02:51.9]} 7.
Be3 {[%clk 0:02:58]} 7... d6 {[%clk 0:02:49.2]} 8. Be2 {[%clk 0:02:56.5]} 8...
O-O {[%clk 0:02:49.6]} 9. Qd2 {[%clk 0:02:56.5]} 9... e5 {[%clk 0:02:46.4]} 10.
Nxc6 {[%clk 0:02:48.7]} 10... bxc6 {[%clk 0:02:46]} 11. O-O {[%clk 0:02:49.4]}
11... Ng4 {[%clk 0:02:43.9]} 12. Bxg4 {[%clk 0:02:43.5]} 12... Bxg4 {[%clk
0:02:44.8]} 13. h3 {[%clk 0:02:43.6]} 13... Be6 {[%clk 0:02:44.1]} 14. Rfd1
{[%clk 0:02:41.8]} 14... Qc7 {[%clk 0:02:40.3]} 15. f4 {[%clk 0:02:41.9]} 15...
f6 {[%clk 0:02:31.4]} 16. f5 {[%clk 0:02:35.7]} 16... Bf7 {[%clk 0:02:26.3]} 17.
g4 {[%clk 0:02:34.8]} 17... Rfd8 {[%clk 0:02:24.4]} 18. Qg2 {[%clk 0:02:33.5]}
18... Qb7 {[%clk 0:02:18.5]} 19. Rab1 {[%clk 0:02:00.8]} 19... d5 {[%clk
0:02:13.7]} 20. Ne2 {[%clk 0:01:07.7]} 20... d4 {[%clk 0:02:04]} 21. Bd2 {[%clk
0:01:04.1]} 21... c5 {[%clk 0:02:03.6]} 22. h4 {[%clk 0:00:41.9]} 22... c4
{[%clk 0:01:57.5]} 23. Ng3 {[%clk 0:00:41.9]} 23... Qc7 {[%clk 0:01:43.5]} 24.
g5 {[%clk 0:00:41.9]} 24... c3 {[%clk 0:01:30]} 25. gxf6 {[%clk 0:00:41.6]}
25... cxd2 {[%clk 0:01:21]} 26. fxe7 {[%clk 0:00:41.8]} 26... Qxe7 {[%clk
0:01:21.9]} 27. Rxd2 {[%clk 0:00:41.2]} 27... Qxh4 {[%clk 0:01:20.9]} 28. Rf1
{[%clk 0:00:36.9]} 28... Qf6 {[%clk 0:01:16.9]} 29. Qh3 {[%clk 0:00:31.5]} 29...
Rac8 {[%clk 0:01:15.5]} 30. Rg2 {[%clk 0:00:30.9]} 30... d3 {[%clk 0:01:13.5]}
31. c3 {[%clk 0:00:27.5]} 31... d2 {[%clk 0:01:11.8]} 32. Rd1 {[%clk 0:00:27.1]}
32... Qb6+ {[%clk 0:00:57.5]} 33. Kh2 {[%clk 0:00:26.3]} 33... Qxb2 {[%clk
0:00:58.4]} 34. Nf1 {[%clk 0:00:24.9]} 34... Qxc3 {[%clk 0:00:55.8]} 35. Qg4
{[%clk 0:00:20.8]} 35... g6 {[%clk 0:00:45.7]} 36. fxg6 {[%clk 0:00:21]} 36...
hxg6 {[%clk 0:00:41.9]} 37. Rdxd2 {[%clk 0:00:21.9]} 37... Rxd2 {[%clk
0:00:40.6]} 38. Nxd2 {[%clk 0:00:22.8]} 38... Kg7 {[%clk 0:00:38.8]} 39. Nf3
{[%clk 0:00:21.2]} 39... Rh8+ {[%clk 0:00:25.2]} 40. Kg1 {[%clk 0:00:21.7]}
40... Qe3+ {[%clk 0:00:21.8]} 41. Kf1 {[%clk 0:00:21.3]} 41... Rd8 {[%clk
0:00:20.5]} 42. Nxe5 {[%clk 0:00:17.8]} 42... Bc4+ {[%clk 0:00:16.5]} 43. Re2
{[%clk 0:00:16.1]} 43... Rd1+ {[%clk 0:00:14.7]} 0-1

[Event "Late-Titled-Tuesday-Blitz-September-12-2023"]
[Site "Chess.com"]
[Date "2023.09.12"]
[Round "3"]
[White "Rutricks"]
[Black "vugarrasulov"]
[Result "0-1"]
[WhiteElo "2685"]
[BlackElo "2956"]
[TimeControl "180+1"]
[EndTime "14:27:04 PDT"]
[Termination "vugarrasulov won by resignation"]

1. c4 {[%clk 0:03:00.2]} 1... g6 {[%clk 0:02:59.3]} 2. g3 {[%clk 0:02:59.9]}
2... Bg7 {[%clk 0:02:59.5]} 3. Bg2 {[%clk 0:03:00.8]} 3... c5 {[%clk 0:02:58.2]}
4. Nc3 {[%clk 0:03:01.2]} 4... Nc6 {[%clk 0:02:58.7]} 5. e3 {[%clk 0:03:00.1]}
5... Nh6 {[%clk 0:02:58.6]} 6. Nge2 {[%clk 0:02:59.8]} 6... Nf5 {[%clk
0:02:59.1]} 7. h3 {[%clk 0:02:59.7]} 7... O-O {[%clk 0:02:59.1]} 8. a3 {[%clk
0:02:59.3]} 8... b6 {[%clk 0:02:56.1]} 9. Rb1 {[%clk 0:02:59.4]} 9... Bb7 {[%clk
0:02:56.2]} 10. b4 {[%clk 0:03:00]} 10... d6 {[%clk 0:02:50.5]} 11. Bb2 {[%clk
0:02:56.8]} 11... Qd7 {[%clk 0:02:49.4]} 12. Qa4 {[%clk 0:02:40.1]} 12... Rfd8
{[%clk 0:02:43.6]} 13. O-O {[%clk 0:02:34.5]} 13... Ne5 {[%clk 0:02:37.7]} 14.
Qb3 {[%clk 0:01:57.6]} 14... Nf3+ {[%clk 0:02:31.3]} 15. Bxf3 {[%clk 0:01:58.2]}
15... Bxf3 {[%clk 0:02:32]} 16. Kh2 {[%clk 0:01:59.1]} 16... h5 {[%clk
0:02:23.3]} 17. Ng1 {[%clk 0:01:59.1]} 17... Bb7 {[%clk 0:02:22.7]} 18. Nd5
{[%clk 0:01:58.7]} 18... e5 {[%clk 0:02:09.2]} 19. e4 {[%clk 0:01:53.8]} 19...
Nd4 {[%clk 0:02:08.2]} 20. Bxd4 {[%clk 0:01:54.4]} 20... cxd4 {[%clk 0:02:01.3]}
21. d3 {[%clk 0:01:54.3]} 21... Rac8 {[%clk 0:01:50.8]} 22. Nf3 {[%clk
0:01:51.1]} 22... Bxd5 {[%clk 0:01:40.3]} 23. exd5 {[%clk 0:01:40.5]} 23... Bh6
{[%clk 0:01:40.7]} 24. Rbe1 {[%clk 0:01:02]} 24... Kg7 {[%clk 0:01:35.5]} 25.
Qc2 {[%clk 0:00:54.6]} 25... f6 {[%clk 0:01:29]} 26. Kg2 {[%clk 0:00:54.9]}
26... b5 {[%clk 0:01:27.4]} 27. Qb3 {[%clk 0:00:45.6]} 27... bxc4 {[%clk
0:01:12.1]} 28. dxc4 {[%clk 0:00:46.5]} 28... Qc7 {[%clk 0:01:09.9]} 29. c5
{[%clk 0:00:31.9]} 29... dxc5 {[%clk 0:01:10.8]} 30. bxc5 {[%clk 0:00:32.8]}
30... Qxc5 {[%clk 0:01:09.5]} 31. g4 {[%clk 0:00:30.6]} 31... Qxd5 {[%clk
0:01:05.8]} 32. Qa4 {[%clk 0:00:31.1]} 32... Rc7 {[%clk 0:00:50.7]} 33. gxh5
{[%clk 0:00:21.3]} 33... e4 {[%clk 0:00:48.4]} 34. Nh2 {[%clk 0:00:17.3]} 34...
gxh5 {[%clk 0:00:45.6]} 35. f3 {[%clk 0:00:16.1]} 35... e3 {[%clk 0:00:42.1]}
36. Rg1 {[%clk 0:00:15.7]} 36... Kh8 {[%clk 0:00:38]} 37. Kh1 {[%clk 0:00:13.7]}
37... d3 {[%clk 0:00:35.5]} 38. Qh4 {[%clk 0:00:14.6]} 38... Rf7 {[%clk
0:00:31.4]} 39. Ng4 {[%clk 0:00:12.5]} 39... Qxf3+ {[%clk 0:00:31.4]} 40. Rg2
{[%clk 0:00:11.9]} 40... d2 {[%clk 0:00:28.4]} 41. Nxh6 {[%clk 0:00:10.4]} 41...
dxe1=Q+ {[%clk 0:00:28.2]} 42. Qxe1 {[%clk 0:00:11.3]} 42... Rg7 {[%clk
0:00:26.1]} 0-1

[Event "Late-Titled-Tuesday-Blitz-September-12-2023"]
[Site "Chess.com"]
[Date "2023.09.12"]
[Round "3"]
[White "CURRUTACO59"]
[Black "Langua_Chess"]
[Result "0-1"]
[WhiteElo "2282"]
[BlackElo "2481"]
[TimeControl "180+1"]
[EndTime "14:27:04 PDT"]
[Termination "Langua_Chess won on time"]

1. Nf3 {[%clk 0:03:00.9]} 1... Nf6 {[%clk 0:02:44.9]} 2. d4 {[%clk 0:02:59.5]}
2... d5 {[%clk 0:02:41.9]} 3. c4 {[%clk 0:02:59]} 3... c6 {[%clk 0:02:41.6]} 4.
e3 {[%clk 0:02:58.3]} 4... Bf5 {[%clk 0:02:39.7]} 5. Nc3 {[%clk 0:02:57.5]} 5...
e6 {[%clk 0:02:38.7]} 6. Bd3 {[%clk 0:02:55.3]} 6... Bg6 {[%clk 0:02:37.9]} 7.
O-O {[%clk 0:02:54]} 7... Nbd7 {[%clk 0:02:35.6]} 8. Qe2 {[%clk 0:02:53.2]} 8...
Bxd3 {[%clk 0:02:27.1]} 9. Qxd3 {[%clk 0:02:54.1]} 9... dxc4 {[%clk 0:02:21.1]}
10. Qxc4 {[%clk 0:02:53.5]} 10... Bd6 {[%clk 0:02:21.9]} 11. Qe2 {[%clk
0:02:21]} 11... O-O {[%clk 0:02:16.8]} 12. b3 {[%clk 0:02:18]} 12... e5 {[%clk
0:02:16.3]} 13. dxe5 {[%clk 0:02:13.4]} 13... Nxe5 {[%clk 0:02:16]} 14. Nxe5
{[%clk 0:02:00.8]} 14... Bxe5 {[%clk 0:02:15.7]} 15. Bb2 {[%clk 0:02:01.4]}
15... Qa5 {[%clk 0:01:50.7]} 16. Rac1 {[%clk 0:01:51.9]} 16... Rad8 {[%clk
0:01:50.5]} 17. a3 {[%clk 0:01:42.1]} 17... Rfe8 {[%clk 0:01:37]} 18. b4 {[%clk
0:01:37.4]} 18... Qc7 {[%clk 0:01:36.9]} 19. h3 {[%clk 0:01:33.2]} 19... Qe7
{[%clk 0:01:34.1]} 20. Rfd1 {[%clk 0:01:20.8]} 20... Bc7 {[%clk 0:01:26.4]} 21.
Na4 {[%clk 0:01:14]} 21... Bb8 {[%clk 0:01:01.6]} 22. Nc5 {[%clk 0:00:59.2]}
22... Qc7 {[%clk 0:01:01.2]} 23. g3 {[%clk 0:00:52.8]} 23... Qe7 {[%clk
0:00:57.9]} 24. Qf3 {[%clk 0:00:50.7]} 24... Nd5 {[%clk 0:00:47.9]} 25. e4
{[%clk 0:00:42.3]} 25... Nb6 {[%clk 0:00:47.5]} 26. Qg4 {[%clk 0:00:24.9]} 26...
f6 {[%clk 0:00:36.7]} 27. Rxd8 {[%clk 0:00:15.5]} 27... Rxd8 {[%clk 0:00:36.7]}
28. Rd1 {[%clk 0:00:08.9]} 28... Rxd1+ {[%clk 0:00:36.3]} 29. Qxd1 {[%clk
0:00:09.8]} 29... h6 {[%clk 0:00:31.3]} 30. Kg2 {[%clk 0:00:08.8]} 30... Be5
{[%clk 0:00:24.1]} 31. Bxe5 {[%clk 0:00:06.9]} 31... Qxe5 {[%clk 0:00:25]} 32.
Qb3+ {[%clk 0:00:05.2]} 32... Kh7 {[%clk 0:00:23.8]} 33. Qf7 {[%clk 0:00:03]}
33... Nc8 {[%clk 0:00:13.6]} 34. Qxb7 {[%clk 0:00:01.3]} 34... Nd6 {[%clk
0:00:07.6]} 35. Qxc6 {[%clk 0:00:01.3]} 35... Nc4 {[%clk 0:00:08.4]} 0-1

[Event "Late-Titled-Tuesday-Blitz-September-12-2023"]
[Site "Chess.com"]
[Date "2023.09.12"]
[Round "3"]
[White "ChristopherYoo"]
[Black "Ali_rastbod"]
[Result "1-0"]
[WhiteElo "3012"]
[BlackElo "2703"]
[TimeControl "180+1"]
[EndTime "14:27:06 PDT"]
[Termination "ChristopherYoo won by resignation"]

1. c4 {[%clk 0:03:00.5]} 1... e5 {[%clk 0:02:57.2]} 2. g3 {[%clk 0:02:59.3]}
2... c6 {[%clk 0:02:57.4]} 3. Nf3 {[%clk 0:02:58]} 3... e4 {[%clk 0:02:56.6]} 4.
Nd4 {[%clk 0:02:58.5]} 4... Nf6 {[%clk 0:02:54.6]} 5. Bg2 {[%clk 0:02:57.8]}
5... Qb6 {[%clk 0:02:53.4]} 6. Nb3 {[%clk 0:02:55.3]} 6... a5 {[%clk 0:02:52.2]}
7. d4 {[%clk 0:02:33.2]} 7... a4 {[%clk 0:02:45.1]} 8. c5 {[%clk 0:02:05.9]}
8... Qb4+ {[%clk 0:02:39.9]} 9. Bd2 {[%clk 0:01:56.1]} 9... Qc4 {[%clk
0:02:40.2]} 10. Qc1 {[%clk 0:01:39.2]} 10... Qxc1+ {[%clk 0:01:31.5]} 11. Nxc1
{[%clk 0:01:40.1]} 11... d5 {[%clk 0:01:32]} 12. cxd6 {[%clk 0:01:40]} 12...
Bxd6 {[%clk 0:01:31.3]} 13. Bg5 {[%clk 0:01:40.6]} 13... O-O {[%clk 0:01:21.7]}
14. Bxf6 {[%clk 0:01:39.4]} 14... gxf6 {[%clk 0:01:22.6]} 15. Bxe4 {[%clk
0:01:38.3]} 15... Re8 {[%clk 0:01:23.1]} 16. Bf3 {[%clk 0:01:25.8]} 16... Bh3
{[%clk 0:01:12.9]} 17. Nd3 {[%clk 0:01:17.5]} 17... Nd7 {[%clk 0:01:06.7]} 18.
Nc3 {[%clk 0:01:12.9]} 18... a3 {[%clk 0:01:06.7]} 19. b3 {[%clk 0:01:07.8]}
19... Nb6 {[%clk 0:01:03.3]} 20. O-O-O {[%clk 0:01:01.3]} 20... f5 {[%clk
0:00:57.2]} 21. Nf4 {[%clk 0:00:58.8]} 21... Bg4 {[%clk 0:00:48.4]} 22. Bxg4
{[%clk 0:00:55.9]} 22... fxg4 {[%clk 0:00:49.3]} 23. h3 {[%clk 0:00:50.5]} 23...
Nd5 {[%clk 0:00:37.2]} 24. Ncxd5 {[%clk 0:00:39.4]} 24... cxd5 {[%clk
0:00:38.1]} 25. Kd2 {[%clk 0:00:34.7]} 25... gxh3 {[%clk 0:00:23.8]} 26. Rxh3
{[%clk 0:00:34.3]} 26... Bb4+ {[%clk 0:00:24]} 27. Kd3 {[%clk 0:00:33.2]} 27...
Red8 {[%clk 0:00:13.7]} 28. Rh5 {[%clk 0:00:31.1]} 28... Ra5 {[%clk 0:00:12.7]}
29. Rdh1 {[%clk 0:00:28.5]} 29... Bf8 {[%clk 0:00:13.2]} 30. Rxh7 {[%clk
0:00:24.5]} 30... Bg7 {[%clk 0:00:13.5]} 31. R7h5 {[%clk 0:00:21.5]} 31... Rb5
{[%clk 0:00:12.2]} 32. Rg5 {[%clk 0:00:18]} 32... Rd6 {[%clk 0:00:10.1]} 33.
Rhh5 {[%clk 0:00:13.7]} 33... Rb4 {[%clk 0:00:07.7]} 34. e3 {[%clk 0:00:13]}
34... Rc6 {[%clk 0:00:07.8]} 35. Nxd5 {[%clk 0:00:12.5]} 35... Rxb3+ {[%clk
0:00:08.2]} 36. axb3 {[%clk 0:00:09.9]} 36... a2 {[%clk 0:00:08.8]} 37. Rh1
{[%clk 0:00:09.7]} 37... Rh6 {[%clk 0:00:06.1]} 38. Ra1 {[%clk 0:00:07.4]} 1-0